bitfinex/quotes_ETHUSD_20250520
["timestamp","ask_amount","ask_price","bid_price","bid_amount"]
[1747747921473,4.12759642,2482.9,2482.0,2.44635962]
[1747747921474,4.02844743,2482.4,2482.0,2.44635962]
[1747747921674,4.02828247,2482.5,2482.2,0.7537]
[1747747921977,4.12764036,2482.9,2482.5,0.7537]
[1747747922308,4.12764036,2482.9,2482.8,0.7589]
[1747747922708,4.12764036,2482.9,2482.8,16.8869]
[1747747922907,4.12764036,2482.9,2482.8,8.8869]
[1747747923325,4.02803512,2482.6,2482.4,8.0]
[1747747923475,4.02835965,2482.4,2482.3,17.403]
[1747747923677,4.02835965,2482.4,2482.3,25.528]
[1747747924491,4.02835965,2482.4,2482.3,17.403]
[1747747924684,4.02835965,2482.4,2482.3,25.528]
[1747747925310,4.02835965,2482.4,2482.3,17.403]
[1747747925530,4.0306328,2481.0,2480.9,0.7879]
[1747747925736,4.0306328,2481.0,2480.9,26.3099]
[1747747926110,4.0306328,2481.0,2480.9,25.522]
[1747747926313,4.0306328,2481.0,2480.9,33.522]
[1747747927213,4.0306328,2481.0,2480.9,25.522]
[1747747927599,4.83674529,2481.0,2480.9,17.397]
[1747747927912,4.0306328,2481.0,2480.9,17.397]
[1747747929305,4.0306328,2481.0,2480.9,25.522]
[1747747932645,4.0316078,2480.4,2480.2,8.126]
[1747747932847,4.0319329,2480.2,2480.1,0.1]
[1747747933049,17.05040936,2480.2,2480.1,0.1]
[1747747934221,17.84900936,2480.2,2480.1,0.1]
[1747747935897,5.36255921,2479.2,2478.1,17.403]
[1747747936096,6.30215656,2479.2,2478.6,8.128]
[1747747936665,6.30215656,2479.2,2478.1,17.403]
[1747747936887,6.30215656,2479.2,2478.7,8.128]
[1747747937136,5.75215656,2479.2,2478.7,8.128]
[1747747937422,4.81255921,2479.2,2478.7,8.128]
[1747747938274,5.36255921,2479.2,2479.0,8.128]
[1747747939207,4.03355921,2479.2,2479.1,8.23]
[1747747941108,4.03355921,2479.2,2479.1,25.64]
[1747747941911,4.03289375,2479.7,2479.1,36.204]
[1747747942074,4.03355921,2479.2,2479.1,28.074]
[1747747942406,4.03355921,2479.2,2479.1,36.205]
[1747747942611,4.03355921,2479.2,2479.1,25.641]
[1747747943304,4.03355921,2479.2,2479.1,33.641]
[1747747944375,4.03355921,2479.2,2479.1,41.72113]
[1747747944603,4.03355921,2479.2,2479.1,40.71685]
[1747747944802,0.7809,2480.8,2479.4,0.7656]
[1747747945075,4.0307275,2481.0,2480.1,0.7656]
[1747747945303,4.81120846,2481.2,2480.3,8.0]
[1747747945618,4.0316078,2480.4,2480.3,8.0]
[1747747946593,4.03145034,2480.5,2480.3,10.370532]
[1747747946775,4.03145034,2480.5,2480.4,7.93837004]
[1747747947004,4.03133454,2480.6,2480.5,8.7757]
[1747747947179,4.03133454,2480.6,2480.5,11.9601]
[1747747947612,4.03133454,2480.6,2480.5,0.7757]
[1747747947912,4.03177035,2480.3,2480.2,17.41]
[1747747948098,5.24125564,2480.3,2480.2,25.54]
[1747747948300,4.03177035,2480.3,2480.2,25.54]
[1747747951385,4.03290853,2479.6,2479.5,17.408]
[1747747951612,4.03290853,2479.6,2479.5,25.731]
[1747747952315,4.03290853,2479.6,2479.5,33.731]
[1747747952491,4.03290853,2479.6,2479.5,37.1041]
[1747747952695,4.03290853,2479.6,2479.5,39.4072]
[1747747953115,4.03283709,2479.7,2479.6,8.0]
[1747747953316,4.03129007,2480.6,2479.6,8.0]
[1747747953317,4.03237446,2480.0,2479.7,0.7543]
[1747747953517,4.03258327,2479.8,2479.7,0.7543]
[1747747953820,4.03258327,2479.8,2479.7,14.67570692]
[1747747953983,4.03258327,2479.8,2479.7,11.35235692]
[1747747954511,4.03162922,2480.4,2479.7,8.09355692]
[1747747954691,4.03095775,2480.8,2479.7,3.35235692]
[1747747955019,4.03186414,2480.3,2479.7,7.02205737]
[1747747955315,4.03196397,2480.2,2479.9,8.0]
[1747747955522,4.02987573,2481.5,2480.1,8.7859]
[1747747955693,4.03130336,2480.6,2480.2,8.04030568]
[1747747955881,4.03081543,2480.9,2480.4,8.0]
[1747747956078,4.03066798,2481.0,2480.6,8.7879]
[1747747956304,4.03079527,2480.9,2480.8,8.0]
[1747747956585,4.03079527,2480.9,2480.8,4.303139]
[1747747956803,4.03079527,2480.9,2480.8,8.0]
[1747747956995,4.03079527,2480.9,2480.8,13.398621]
[1747747957195,4.03109035,2480.8,2480.6,8.7879]
[1747747957436,4.02915114,2482.0,2480.8,8.0]
[1747747957590,0.1,2481.9,2481.0,8.55]
[1747747957921,4.12919719,2481.9,2481.5,0.8042]
[1747747958093,4.12919719,2481.9,2481.7,8.0]
[1747747958094,4.02941909,2481.8,2481.7,8.0]
[1747747958282,0.1,2481.9,2481.8,14.64029]
[1747747958483,0.1,2481.9,2481.8,16.89979574]
[1747747958683,4.02803467,2482.7,2481.9,8.55]
[1747747958885,4.02642529,2483.6,2482.3,0.55]
[1747747959198,4.02771064,2482.8,2482.5,8.7898]
[1747747959516,4.02669652,2483.5,2482.7,8.0]
[1747747959826,4.02669652,2483.5,2482.6,31.43709]
[1747747959827,4.02736723,2483.1,2482.8,14.11801226]
[1747747960123,4.02661888,2483.5,2482.9,12.1747127]
[1747747960325,4.02673815,2483.4,2483.1,8.0]
[1747747960524,4.02673815,2483.4,2483.3,8.0]
[1747747960756,0.1,2483.9,2483.4,0.8223]
[1747747960907,0.1,2483.9,2483.6,8.0]
[1747747961107,4.02625115,2483.7,2483.6,8.0]
[1747747961312,4.02612853,2483.8,2483.7,8.325741]
[1747747961563,0.1,2483.9,2483.8,8.0]
[1747747961855,0.1,2483.9,2483.8,27.018334]
[1747747962025,4.12592696,2483.9,2483.8,27.99887712]
[1747747962351,4.12592696,2483.9,2483.8,19.081485]
[1747747963041,4.02641327,2483.6,2482.8,1.87089426]
[1747747963260,4.02738622,2483.0,2482.9,26.5195]
[1747747963769,4.02738622,2483.0,2482.9,34.5195]
[1747747963970,4.02738622,2483.0,2482.9,26.5195]
[1747747964172,4.02738622,2483.0,2482.9,40.449028]
[1747747964372,4.02738622,2483.0,2482.9,26.5195]
[1747747964575,4.83284909,2483.0,2482.9,17.395]
[1747747964734,4.83284909,2483.0,2482.9,25.712]
[1747747965241,4.83284909,2483.0,2482.9,17.395]
[1747747965452,4.83284909,2483.0,2482.9,25.71]
[1747747965873,4.83284909,2483.0,2482.9,17.395]
[1747747966056,4.83284909,2483.0,2482.9,25.71]
[1747747966481,4.83284909,2483.0,2482.9,17.395]
[1747747966787,4.83284909,2483.0,2482.9,8.315]
[1747747967154,5.38284909,2483.0,2482.9,8.315]
[1747747967451,4.02852193,2482.3,2482.2,17.392]
[1747747967650,4.02852193,2482.3,2482.2,25.707]
[1747747968094,4.02852193,2482.3,2482.2,17.392]
[1747747968295,4.02852193,2482.3,2482.2,25.707]
[1747747968469,4.02852193,2482.3,2482.2,32.397458]
[1747747968798,4.02852193,2482.3,2482.2,34.0553458]
[1747747969092,4.02852193,2482.3,2482.2,42.0553458]
[1747747969291,4.02852193,2482.3,2482.2,40.6281168]
[1747747969494,4.02852193,2482.3,2482.2,35.725867]
[1747747969693,4.02852193,2482.3,2482.2,39.09193]
[1747747969866,4.02852193,2482.3,2482.2,22.77693]
[1747747970071,4.02852193,2482.3,2482.2,33.707]
[1747747970253,4.02852193,2482.3,2482.2,41.356987]
[1747747970454,4.02852193,2482.3,2482.2,42.26107088]
[1747747970894,4.02843416,2482.4,2482.3,8.0]
[1747747971261,4.02843416,2482.4,2482.3,12.055008]
[1747747971606,4.02843416,2482.4,2482.3,8.0]
[1747747972457,4.02852193,2482.3,2482.2,17.392]
[1747747972658,4.02965828,2481.6,2481.5,17.391]
[1747747972892,4.02965828,2481.6,2481.5,26.04240242]
[1747747973313,4.02965828,2481.6,2481.5,30.27651042]
[1747747973492,4.02965828,2481.6,2481.5,26.04240242]
[1747747974012,4.02965828,2481.6,2481.5,17.72740242]
[1747747974178,4.02965828,2481.6,2481.5,26.04240242]
[1747747974379,4.02965828,2481.6,2481.5,17.391]
[1747747974579,5.38557651,2481.6,2481.5,25.706]
[1747747974812,4.03030791,2481.2,2481.1,8.415]
[1747747980313,4.03030791,2481.2,2481.1,0.1]
[1747747980625,4.03030791,2481.2,2481.1,8.418]
[1747747980832,4.83635589,2481.2,2481.1,8.418]
[1747747981330,14.16895589,2481.2,2481.1,0.1]
[1747747981493,24.27895589,2481.2,2481.1,0.1]
[1747747981695,4.0319329,2480.2,2480.1,0.1]
[1747747981895,4.91656629,2480.2,2480.1,8.499]
[1747747982091,4.0319329,2480.2,2480.1,8.499]
[1747747983411,4.0319329,2480.2,2480.1,16.499]
[1747747983608,4.03121801,2480.7,2480.3,0.7826]
[1747747983931,4.03030791,2481.2,2480.3,0.7826]
[1747747984138,4.03110621,2480.8,2480.3,0.7826]
[1747747984433,4.03120072,2480.7,2480.5,8.0]
[1747747984616,4.03120072,2480.7,2480.6,50.2940288]
[1747747984816,4.03120072,2480.7,2480.6,40.7920248]
[1747747985027,4.03104076,2480.8,2480.6,40.7920248]
[1747747985237,4.03112024,2480.7,2480.6,36.0796148]
[1747747985437,4.03112024,2480.7,2480.6,27.6796148]
[1747747985762,4.03112024,2480.7,2480.6,17.399]
[1747747985967,4.03112024,2480.7,2480.6,25.799]
[1747747986730,4.03112024,2480.7,2480.6,33.799]
[1747747986967,4.7871066,2481.9,2480.7,8.0]
[1747747987167,4.03016191,2481.3,2480.7,8.0]
[1747747987331,4.03079527,2480.9,2480.8,11.3799]
[1747747987529,4.03079527,2480.9,2480.8,15.319937]
[1747747987730,4.03077681,2481.0,2480.9,8.0]
[1747747987925,4.03077681,2481.0,2480.8,15.319937]
[1747747987926,4.03079527,2480.9,2480.8,3.3799]
[1747747988338,4.03095775,2480.8,2480.7,8.0]
[1747747988538,4.03095775,2480.8,2480.7,16.4]
[1747747989582,4.03095775,2480.8,2480.7,8.4]
[1747747989880,4.03112024,2480.7,2480.6,17.399]
[1747747990180,4.03112024,2480.7,2480.6,33.799]
[1747747990359,4.03112024,2480.7,2480.6,37.1789]
[1747747990886,4.0319329,2480.2,2480.1,0.1]
[1747747991042,4.0319329,2480.2,2480.1,25.899]
[1747747991244,4.0319329,2480.2,2480.1,33.899]
[1747747991442,4.82756845,2481.0,2480.2,8.0]
[1747747991780,4.03177035,2480.3,2480.2,8.0]
[1747747991996,4.0316078,2480.4,2480.3,0.793]
[1747747992167,4.0316078,2480.4,2480.3,3.965542]
[1747747992684,4.0316078,2480.4,2480.3,0.793]
[1747747993608,4.03177035,2480.3,2480.2,11.3899]
[1747747993920,4.03177035,2480.3,2480.2,8.0]
[1747747994203,4.03151532,2480.5,2480.2,18.733885]
[1747747994359,4.03151532,2480.5,2480.3,8.600978]
[1747747994792,4.03047035,2481.1,2480.3,8.600978]
[1747747994793,4.03104995,2480.8,2480.4,8.0]
[1747747994997,10.11,2482.0,2480.5,1.86468479]
[1747747995219,4.03095775,2480.8,2480.7,8.0]
[1747747995365,4.03082735,2480.9,2480.7,8.4]
[1747747995563,4.03058631,2481.1,2480.8,8.4]
[1747747995806,4.03070667,2481.0,2480.9,8.4]
[1747747996009,4.0306328,2481.0,2480.9,8.4]
[1747747996220,4.0306328,2481.0,2480.2,8.0]
[1747747996221,4.03177035,2480.3,2480.2,8.0]
[1747747996495,4.0319329,2480.2,2480.1,17.499]
[1747747996693,4.0319329,2480.2,2480.1,33.899]
[1747747996985,4.0319329,2480.2,2480.1,25.899]
[1747747997584,4.0319329,2480.2,2480.1,17.499]
[1747747997798,4.0319329,2480.2,2480.1,25.899]
[1747747998325,4.03110508,2480.8,2480.1,25.899]
[1747747998326,4.03153406,2480.5,2480.3,0.7563]
[1747747998525,4.03100809,2480.8,2480.5,8.0]
[1747747998818,4.03095775,2480.8,2480.7,8.0]
[1747747998983,4.03082817,2480.9,2480.7,16.401]
[1747747999182,4.03069927,2481.0,2480.7,16.401]
[1747747999389,4.03088874,2480.9,2480.8,8.0]
[1747747999625,4.03088874,2480.9,2480.8,13.126276]
[1747747999793,4.03088874,2480.9,2480.8,8.0]
[1747747999999,4.03088874,2480.9,2480.8,10.584]
[1747748000196,4.03088874,2480.9,2480.8,11.72095692]
[1747748000425,0.7933,2482.1,2480.9,0.772]
[1747748000726,4.02977478,2481.6,2481.1,8.0]
[1747748000944,4.02835965,2482.4,2481.3,8.0]
[1747748001233,4.02871693,2482.2,2481.6,0.7888]
[1747748001429,1.49316597,2482.3,2481.5,8.0]
[1747748001430,4.02965828,2481.6,2481.5,8.0]
[1747748001628,4.03030791,2481.2,2481.1,8.7888]
[1747748001928,4.03030791,2481.2,2481.1,16.401]
[1747748002129,4.03030791,2481.2,2481.1,20.24782]
[1747748002630,4.03030791,2481.2,2481.1,19.13644]
[1747748002988,4.03030791,2481.2,2481.1,19.52009165]
[1747748003786,4.0302172,2481.3,2481.1,23.42245453]
[1747748004084,4.02835965,2482.4,2481.4,0.8125]
[1747748004290,4.0292487,2481.9,2481.5,8.0]
[1747748004488,4.0292487,2481.9,2481.6,20.954271]
[1747748004737,4.0292487,2481.9,2481.8,8.0]
[1747748005090,4.1276988,2482.9,2481.8,4.24013712]
[1747748005091,4.02891479,2482.1,2481.8,4.24013712]
[1747748005289,4.02805489,2482.6,2482.0,8.0]
[1747748005490,4.9448988,2482.9,2481.9,26.765188]
[1747748005491,4.02867551,2482.3,2482.2,8.0]
[1747748005690,0.1,2482.9,2482.2,15.01942]
[1747748005939,0.1,2482.9,2482.2,8.7804]
[1747748005940,4.02815772,2482.6,2482.2,8.7804]
[1747748006126,4.02803148,2482.7,2482.4,8.0]
[1747748006437,4.02803148,2482.7,2482.3,17.62856692]
[1747748006438,4.02780181,2482.8,2482.6,8.0]
[1747748006747,4.02780181,2482.8,2482.7,8.4]
[1747748007039,4.02780181,2482.8,2482.7,13.610161]
[1747748007387,4.12761539,2482.9,2482.8,8.0]
[1747748007727,0.1,2482.9,2482.8,36.7318412]
[1747748008224,0.1,2482.9,2482.8,30.6918412]
[1747748008429,0.1,2482.9,2482.8,45.6798412]
[1747748008728,0.1,2482.9,2482.8,56.10778078]
[1747748009028,4.02673753,2483.4,2483.3,0.803]
[1747748009325,4.0266356,2483.5,2483.4,8.0]
[1747748009494,4.02673753,2483.4,2483.3,9.201]
[1747748009696,4.02673753,2483.4,2483.3,10.1211]
[1747748009914,4.02665223,2483.5,2483.4,5.172916]
[1747748010090,4.02665223,2483.5,2483.4,13.172916]
[1747748010843,4.02649599,2483.6,2483.5,8.0]
[1747748011016,4.02673753,2483.4,2483.3,1.7231]
[1747748011219,4.02673753,2483.4,2483.3,27.032002]
[1747748011413,4.02673753,2483.4,2483.3,21.176269]
[1747748011631,4.02665906,2483.5,2483.3,27.214269]
[1747748011804,0.1,2483.9,2483.3,27.214269]
[1747748011805,4.02641997,2483.6,2483.5,8.0]
[1747748012017,4.02641997,2483.6,2483.5,10.34655]
[1747748012906,4.02641997,2483.6,2483.3,0.803]
[1747748013223,4.02641327,2483.6,2483.5,8.0]
[1747748013429,4.02641327,2483.6,2483.5,16.447]
[1747748013746,4.02641327,2483.6,2483.5,24.030131]
[1747748014050,0.1,2483.9,2483.5,24.030131]
[1747748014051,0.1,2483.9,2483.6,0.7611]
[1747748014340,4.02608905,2483.8,2483.7,25.388]
[1747748014547,0.1,2483.9,2483.8,8.0]
[1747748014707,4.02471106,2484.7,2483.8,8.0]
[1747748014708,4.02480939,2484.6,2484.1,3.62297427]
[1747748015003,4.12432095,2484.9,2484.3,8.0]
[1747748015193,4.02479272,2484.6,2484.5,8.0]
[1747748015393,4.02479272,2484.6,2484.5,27.569615]
[1747748015614,4.02479272,2484.6,2484.5,25.388]
[1747748015937,4.02479272,2484.6,2484.5,33.835]
[1747748016296,4.02479272,2484.6,2484.5,25.388]
[1747748016644,4.02479272,2484.6,2484.5,37.061]
[1747748017932,4.02479272,2484.6,2484.5,36.530517]
[1747748018128,4.02479272,2484.6,2484.5,33.832]
[1747748019535,4.02479272,2484.6,2484.5,41.9997]
[1747748020523,4.02479272,2484.6,2484.5,33.831]
[1747748021334,4.02479272,2484.6,2484.5,40.64507672]
[1747748021503,4.02479272,2484.6,2484.5,38.195243]
[1747748021700,4.02479272,2484.6,2484.5,17.388]
[1747748021900,4.02479272,2484.6,2482.8,0.47299861]
[1747748021901,0.7955,2484.5,2483.4,17.38]
[1747748022116,4.02657539,2483.5,2483.4,17.38]
[1747748022414,4.02657539,2483.5,2483.4,25.822]
[1747748022618,4.83187748,2483.5,2483.4,17.38]
[1747748022818,4.83187748,2483.5,2483.4,25.822]
[1747748022819,4.02657539,2483.5,2483.4,25.822]
[1747748027759,4.02657539,2483.5,2483.4,25.823]
[1747748030162,4.81517539,2483.5,2483.4,25.824]
[1747748031521,4.02657539,2483.5,2483.4,25.824]
[1747748032068,4.02657539,2483.5,2483.4,30.585381]
[1747748032365,3.97657539,2483.5,2483.4,39.0142181]
[1747748032560,4.02641327,2483.6,2483.5,8.0]
[1747748032767,4.02641327,2483.6,2483.5,12.21745]
[1747748032919,4.02641327,2483.6,2483.5,16.444]
[1747748033109,4.02641327,2483.6,2483.5,21.042595]
[1747748033313,4.02639136,2483.7,2483.5,23.95521382]
[1747748033615,4.02641327,2483.6,2483.5,19.35661882]
[1747748034048,4.02641327,2483.6,2483.5,10.91261882]
[1747748034364,4.02641327,2483.6,2483.5,16.444]
[1747748034765,4.02641327,2483.6,2483.5,21.25808]
[1747748035223,4.02641327,2483.6,2483.5,18.74125]
[1747748035954,4.02641327,2483.6,2483.5,19.132809]
[1747748036152,4.02472845,2484.7,2483.5,19.52881234]
[1747748036355,4.02463074,2484.7,2483.7,8.0]
[1747748036541,4.02553526,2484.2,2483.8,0.55]
[1747748036741,4.12431355,2484.9,2484.0,8.55]
[1747748036742,0.1,2484.9,2484.0,8.55]
[1747748036942,4.02546249,2484.2,2484.0,8.55]
[1747748037146,0.1,2484.9,2484.0,8.55]
[1747748037147,4.02527389,2484.4,2484.2,8.0]
[1747748037453,4.02527389,2484.4,2484.3,22.30457569]
[1747748037858,4.02501368,2484.5,2484.3,32.03657569]
[1747748038057,0.1,2484.9,2484.5,8.0]
[1747748038257,0.1,2484.9,2484.6,5.910386]
[1747748038258,4.02454502,2484.8,2484.6,5.910386]
[1747748038557,4.02454502,2484.8,2484.6,8.0]
[1747748038558,4.02463074,2484.7,2484.6,8.0]
[1747748038722,4.02463074,2484.7,2484.6,9.6993]
[1747748039259,4.12431901,2484.9,2484.8,8.0]
[1747748039427,4.12431901,2484.9,2484.8,23.106639]
[1747748039621,4.12431901,2484.9,2484.8,12.679854]
[1747748039822,4.02511672,2484.4,2484.3,17.382]
[1747748040049,4.02527875,2484.3,2484.1,8.442]
[1747748041355,4.02527875,2484.3,2483.6,18.1297]
[1747748041356,4.02625115,2483.7,2483.6,17.378]
[1747748041557,4.02625115,2483.7,2483.6,25.82]
[1747748042428,4.02625115,2483.7,2483.6,25.972]
[1747748042687,5.31603092,2483.7,2483.6,25.972]
[1747748043764,4.02625115,2483.7,2483.6,25.973]
[1747748045357,4.82295115,2483.7,2483.6,25.973]
[1747748046073,4.02625115,2483.7,2483.6,25.973]
[1747748046268,4.02625115,2483.7,2483.6,28.769838]
[1747748046470,4.02625115,2483.7,2483.6,25.973]
[1747748046682,4.02625115,2483.7,2483.6,19.9753]
[1747748046972,0.8146,2484.4,2483.7,8.0]
[1747748047177,4.0260826,2483.9,2483.8,0.04025519]
[1747748047350,4.02608905,2483.8,2483.7,8.0]
[1747748047730,4.0260826,2483.9,2483.7,10.078032]
[1747748047936,4.02582235,2484.0,2483.8,7.54125392]
[1747748048134,4.02592696,2483.9,2483.8,3.37385692]
[1747748048382,4.02592696,2483.9,2483.8,5.98284692]
[1747748048746,4.02592696,2483.9,2483.8,3.37385692]
[1747748049147,4.02592696,2483.9,2483.6,17.378]
[1747748049148,4.02625115,2483.7,2483.6,17.378]
[1747748049332,4.02625115,2483.7,2483.6,25.974]
[1747748050580,4.78635115,2483.7,2483.6,17.378]
[1747748050882,4.78635115,2483.7,2483.2,8.595]
[1747748050883,4.78699968,2483.3,2483.2,8.595]
[1747748051072,4.78699968,2483.3,2482.9,17.38]
[1747748051073,4.02738622,2483.0,2482.9,25.975]
[1747748051864,4.02738622,2483.0,2482.9,33.975]
[1747748052561,4.02731114,2483.1,2482.9,39.045164]
[1747748052874,4.02731114,2483.1,2483.0,4.15974]
[1747748053075,4.02738622,2483.0,2482.9,33.975]
[1747748053386,4.02738622,2483.0,2482.9,36.857582]
[1747748053540,4.02713509,2483.2,2482.9,36.857582]
[1747748053740,4.02722403,2483.1,2483.0,4.436359]
[1747748054073,4.02722403,2483.1,2483.0,16.2774949]
[1747748054438,4.02722403,2483.1,2483.0,16.1743859]
[1747748054676,4.02722403,2483.1,2483.0,8.38314678]
[1747748054879,4.02722403,2483.1,2483.0,16.98014678]
[1747748055277,4.02722403,2483.1,2483.0,21.15636078]
[1747748055481,4.02722403,2483.1,2483.0,16.98014678]
[1747748055860,4.02722403,2483.1,2483.0,19.95764678]
[1747748056180,0.7705,2484.0,2483.1,8.0]
[1747748056477,0.783,2484.8,2483.3,0.7657]
[1747748056682,4.02673753,2483.4,2483.3,0.7657]
[1747748056849,4.02673753,2483.4,2483.3,23.581171]
[1747748057043,4.02666742,2483.5,2483.3,27.36110024]
[1747748057245,4.02633947,2483.7,2483.3,27.36110024]
[1747748057445,4.02488431,2484.6,2483.5,8.0]
[1747748057659,4.02625115,2483.7,2483.6,16.597]
[1747748057948,4.02625115,2483.7,2483.6,20.864695]
[1747748058187,4.02625115,2483.7,2483.6,10.0864695]
[1747748058481,4.02625115,2483.7,2483.6,8.596]
[1747748061172,4.02738622,2483.0,2482.9,17.38]
[1747748061351,4.02738622,2483.0,2482.9,25.976]
[1747748061550,4.02738622,2483.0,2482.9,36.69761986]
[1747748062177,4.02731383,2483.1,2483.0,8.0]
[1747748062452,4.0270449,2483.3,2483.0,12.18755]
[1747748062650,4.02535749,2484.3,2483.2,8.8269]
[1747748062994,4.85053366,2484.4,2483.5,8.0]
[1747748063189,4.93923632,2484.9,2483.7,0.8208]
[1747748063190,0.8138,2484.8,2483.7,0.8208]
[1747748063353,4.0259214,2484.0,2483.9,8.0]
[1747748063680,4.02559793,2484.2,2483.9,13.92495]
[1747748063875,4.02544078,2484.2,2484.1,8.0]
[1747748064071,4.02592696,2483.9,2483.8,17.381]
[1747748064274,4.02592696,2483.9,2483.8,33.976]
[1747748064591,4.02592696,2483.9,2483.8,35.53499966]
[1747748065499,4.02592696,2483.9,2483.8,33.976]
[1747748065657,4.02592696,2483.9,2483.8,37.059164]
[1747748065985,4.02592696,2483.9,2483.8,33.976]
[1747748066192,4.02592696,2483.9,2483.8,36.140459]
[1747748067294,4.02592696,2483.9,2483.8,38.5103]
[1747748067591,4.02592696,2483.9,2483.8,33.976]
[1747748067753,4.02592696,2483.9,2483.8,17.381]
[1747748067954,4.02592696,2483.9,2483.8,25.976]
[1747748067955,4.90959701,2483.9,2483.8,25.976]
[1747748068756,4.02592696,2483.9,2483.8,25.976]
[1747748068955,4.02592696,2483.9,2483.8,31.321592]
[1747748069257,4.02592696,2483.9,2483.8,25.976]
[1747748069763,4.02592696,2483.9,2483.8,45.217579]
[1747748070384,4.02592696,2483.9,2483.8,25.976]
[1747748070687,4.90959701,2483.9,2483.8,25.976]
[1747748071561,4.02592696,2483.9,2483.8,25.976]
[1747748073090,4.02576489,2484.0,2483.9,8.0]
[1747748073492,4.02576489,2484.0,2483.9,13.17507]
[1747748073674,4.02568635,2484.1,2483.9,12.791012]
[1747748074009,4.02544078,2484.2,2484.1,0.7526]
[1747748074188,4.02560283,2484.1,2484.0,11.8767012]
[1747748074391,4.02560283,2484.1,2484.0,16.24505561]
[1747748074592,4.02560283,2484.1,2484.0,15.06837561]
[1747748075110,4.02560283,2484.1,2484.0,12.26090561]
[1747748075286,4.02560283,2484.1,2484.0,15.16036661]
[1747748075609,4.02520397,2484.4,2484.0,15.16036661]
[1747748075824,4.02490003,2484.6,2484.2,8.0]
[1747748075980,4.02496863,2484.5,2484.3,27.806579]
[1747748076317,4.02465516,2484.7,2484.5,8.0]
[1747748076501,0.1,2484.9,2484.7,0.8318]
[1747748076702,4.12430681,2484.9,2484.8,43.376938]
[1747748077015,0.1,2484.9,2484.8,51.42566109]
[1747748077593,0.1,2484.9,2484.8,52.20116109]
[1747748077795,0.1,2484.9,2484.8,48.5791392]
[1747748078318,0.1,2484.9,2484.8,49.43634222]
[1747748078618,0.1,2484.9,2484.8,52.16357822]
[1747748078794,0.1,2484.9,2484.8,52.57283567]
[1747748079114,4.12430681,2484.9,2484.8,52.57283567]
[1747748079277,0.1,2484.9,2484.8,52.57283567]
[1747748079705,0.1,2484.9,2484.8,51.71563265]
[1747748079911,4.02409058,2485.1,2484.9,8.55]
[1747748080111,4.02409058,2485.1,2485.0,29.33603472]
[1747748081284,4.02409058,2485.1,2485.0,27.23593472]
[1747748081686,4.02382102,2485.2,2485.1,8.55]
[1747748081909,4.02373094,2485.3,2485.1,28.042379]
[1747748082110,4.02357779,2485.4,2485.2,30.25526247]
[1747748082431,4.02349722,2485.4,2485.3,35.804579]
[1747748082611,0.8245,2486.4,2485.3,28.103695]
[1747748082917,4.0232537,2485.6,2485.3,23.895]
[1747748083124,4.02299116,2485.8,2485.5,8.0]
[1747748083463,4.02284978,2485.8,2485.7,8.0]
[1747748083721,4.02284978,2485.8,2485.7,40.2672]
[1747748084419,4.02284978,2485.8,2485.7,36.359055]
[1747748085808,4.02284978,2485.8,2485.7,31.666907]
[1747748086049,4.02284978,2485.8,2485.7,25.373]
[1747748086230,4.02284978,2485.8,2485.7,33.933]
[1747748087680,4.02284978,2485.8,2485.7,48.96512745]
[1747748087840,4.02284978,2485.8,2485.7,41.38903445]
[1747748089344,4.02284978,2485.8,2485.7,27.388179]
[1747748089684,0.7906,2485.6,2484.0,0.7986]
[1747748089851,4.02560283,2484.1,2484.0,0.7986]
[1747748090044,4.02560283,2484.1,2484.0,9.3586]
[1747748090377,4.02560283,2484.1,2484.0,8.56]
[1747748090578,4.02576489,2484.0,2483.9,17.369]
[1747748090947,4.02576489,2484.0,2483.1,0.1]
[1747748090948,6.02124854,2484.0,2483.1,0.1]
[1747748091146,4.85636185,2483.2,2483.1,0.1]
[1747748091467,4.85636185,2483.2,2483.1,8.66]
[1747748091858,4.85636185,2483.2,2483.1,0.1]
[1747748092064,4.85636185,2483.2,2483.1,8.661]
[1747748093979,5.40636185,2483.2,2483.1,0.1]
[1747748094188,6.29468994,2483.2,2483.1,0.1]
[1747748094386,6.29468994,2483.2,2481.5,6.031]
[1747748094387,4.34778423,2482.2,2482.1,8.663]
[1747748101065,4.89778423,2482.2,2481.2,8.567]
[1747748101251,4.85894548,2481.3,2481.2,8.567]
[1747748101679,12.81320791,2481.2,2481.1,0.1]
[1747748101865,17.27689799,2481.2,2481.1,0.1]
[1747748102048,4.81404527,2480.5,2479.3,17.384]
[1747748102254,17.27773535,2480.5,2479.7,8.567]
[1747748102490,4.0319329,2480.2,2479.7,8.567]
[1747748103071,17.27822298,2480.2,2479.7,8.567]
[1747748103263,17.82822298,2480.2,2479.7,8.567]
[1747748103788,13.3645329,2480.2,2479.7,8.567]
[1747748104204,4.8145329,2480.2,2479.7,8.567]
[1747748104353,4.8145329,2480.2,2479.3,17.384]
[1747748104554,5.69916545,2480.2,2479.8,8.576]
[1747748104998,13.69916545,2480.2,2479.8,8.576]
[1747748105209,14.24916545,2480.2,2479.8,8.576]
[1747748105384,13.69916545,2480.2,2479.8,8.576]
[1747748105557,14.24916545,2480.2,2479.8,8.576]
[1747748106499,14.65778363,2480.2,2479.8,8.576]
[1747748106876,4.81093384,2479.4,2479.3,25.963]
[1747748107082,4.81093384,2479.4,2479.3,17.384]
[1747748107293,4.58355921,2479.2,2479.1,0.1]
[1747748107460,4.03404735,2478.9,2478.8,8.579]
[1747748107667,13.36223562,2478.6,2478.5,19.60227273]
[1747748107899,15.15689647,2478.6,2478.5,19.60227273]
[1747748108199,15.15689647,2478.6,2478.5,6.76927273]
[1747748108407,4.03763071,2476.7,2475.9,20.13974823]
[1747748108563,4.04367165,2473.0,2472.1,2.11962477]
[1747748108763,8.0,2472.5,2472.1,0.028]